[Event "Live Chess"]
[Site "Chess.com"]
[Date "2010.12.13"]
[Round "-"]
[White "hipposcottimus"]
[Black "MrPunisher2010"]
[Result "1-0"]
[CurrentPosition "8/8/p1kQ4/2P3p1/8/P7/6PP/6K1 b - -"]
[Timezone "UTC"]
[ECO "C00"]
[ECOUrl "https://www.chess.com/openings/French-Defense-Knight-Variation"]
[UTCDate "2010.12.13"]
[UTCTime "20:53:56"]
[WhiteElo "1629"]
[BlackElo "1495"]
[TimeControl "60"]
[Termination "hipposcottimus won on time"]
[StartTime "20:53:56"]
[EndDate "2010.12.13"]
[EndTime "20:55:53"]
[Link "https://www.chess.com/game/live/76989511"]

1. e4 {[%clk 0:01:00]} 1... e6 {[%clk 0:01:00]} 2. Nf3 {[%clk 0:00:59.7]} 2... c6 {[%clk 0:00:59.4]} 3. e5 {[%clk 0:00:59.4]} 3... d5 {[%clk 0:00:58.5]} 4. exd6 {[%clk 0:00:58.1]} 4... Qxd6 {[%clk 0:00:57.8]} 5. d4 {[%clk 0:00:57.8]} 5... c5 {[%clk 0:00:55.9]} 6. Nc3 {[%clk 0:00:57.3]} 6... cxd4 {[%clk 0:00:55]} 7. Nxd4 {[%clk 0:00:56.8]} 7... e5 {[%clk 0:00:53.9]} 8. Bb5+ {[%clk 0:00:55.4]} 8... Bd7 {[%clk 0:00:51.4]} 9. Bxd7+ {[%clk 0:00:53.8]} 9... Nxd7 {[%clk 0:00:50.7]} 10. Nf5 {[%clk 0:00:52]} 10... g6 {[%clk 0:00:47.7]} 11. Nxd6+ {[%clk 0:00:49.4]} 11... Bxd6 {[%clk 0:00:46.4]} 12. O-O {[%clk 0:00:49.2]} 12... Be7 {[%clk 0:00:44.8]} 13. Re1 {[%clk 0:00:48.9]} 13... Rd8 {[%clk 0:00:43.8]} 14. f4 {[%clk 0:00:48.7]} 14... f6 {[%clk 0:00:43.2]} 15. Qe2 {[%clk 0:00:48.3]} 15... exf4 {[%clk 0:00:41.5]} 16. Bxf4 {[%clk 0:00:46.6]} 16... g5 {[%clk 0:00:40.1]} 17. Bc7 {[%clk 0:00:46.2]} 17... Rc8 {[%clk 0:00:37.8]} 18. Bg3 {[%clk 0:00:45.9]} 18... Ne5 {[%clk 0:00:36.2]} 19. Bxe5 {[%clk 0:00:43.1]} 19... fxe5 {[%clk 0:00:35.6]} 20. Qxe5 {[%clk 0:00:42.8]} 20... Nf6 {[%clk 0:00:33.8]} 21. Nd5 {[%clk 0:00:42.5]} 21... Nxd5 {[%clk 0:00:30.9]} 22. Qxd5 {[%clk 0:00:42.3]} 22... Rc7 {[%clk 0:00:30.5]} 23. Qe6 {[%clk 0:00:41.8]} 23... Rf8 {[%clk 0:00:29.1]} 24. Re2 {[%clk 0:00:38.3]} 24... Rf7 {[%clk 0:00:27.8]} 25. Rae1 {[%clk 0:00:37.9]} 25... Rd7 {[%clk 0:00:26.7]} 26. Qh6 {[%clk 0:00:36.4]} 26... Kd8 {[%clk 0:00:24.2]} 27. Qe6 {[%clk 0:00:34.4]} 27... Rd6 {[%clk 0:00:22.5]} 28. Qb3 {[%clk 0:00:33.2]} 28... Bf8 {[%clk 0:00:18]} 29. c3 {[%clk 0:00:30]} 29... Re7 {[%clk 0:00:14.6]} 30. Rxe7 {[%clk 0:00:27.8]} 30... Bxe7 {[%clk 0:00:13.8]} 31. Rd1 {[%clk 0:00:27.5]} 31... Rxd1+ {[%clk 0:00:12.3]} 32. Qxd1+ {[%clk 0:00:27.3]} 32... Ke8 {[%clk 0:00:11.7]} 33. Qh5+ {[%clk 0:00:26.6]} 33... Kd8 {[%clk 0:00:10.4]} 34. Qxh7 {[%clk 0:00:26.3]} 34... Kd7 {[%clk 0:00:09.3]} 35. Qh8 {[%clk 0:00:26]} 35... b6 {[%clk 0:00:08.7]} 36. Qd4+ {[%clk 0:00:25.3]} 36... Bd6 {[%clk 0:00:07.5]} 37. b4 {[%clk 0:00:25]} 37... Kc6 {[%clk 0:00:06.6]} 38. a3 {[%clk 0:00:24.4]} 38... Kd7 {[%clk 0:00:06]} 39. c4 {[%clk 0:00:24]} 39... a6 {[%clk 0:00:05.4]} 40. c5 {[%clk 0:00:23.2]} 40... bxc5 {[%clk 0:00:04.8]} 41. bxc5 {[%clk 0:00:22.8]} 41... Kc6 {[%clk 0:00:01.8]} 42. Qxd6+ {[%clk 0:00:22.2]} 1-0

[Event "Live Chess"]
[Site "Chess.com"]
[Date "2010.12.13"]
[Round "-"]
[White "jknipe33"]
[Black "hipposcottimus"]
[Result "0-1"]
[CurrentPosition "1q5k/p1R2Qpp/1p3n2/4p3/1b5P/1P6/PKP3P1/8 w - -"]
[Timezone "UTC"]
[ECO "C47"]
[ECOUrl "https://www.chess.com/openings/Four-Knights-Game"]
[UTCDate "2010.12.13"]
[UTCTime "20:51:41"]
[WhiteElo "1382"]
[BlackElo "1624"]
[TimeControl "60"]
[Termination "hipposcottimus won on time"]
[StartTime "20:51:41"]
[EndDate "2010.12.13"]
[EndTime "20:53:41"]
[Link "https://www.chess.com/game/live/76988817"]

1. e4 {[%clk 0:01:00]} 1... e5 {[%clk 0:01:00]} 2. Nf3 {[%clk 0:00:59.5]} 2... Nc6 {[%clk 0:00:59.7]} 3. Nc3 {[%clk 0:00:59]} 3... Nf6 {[%clk 0:00:59.4]} 4. d3 {[%clk 0:00:58.6]} 4... d5 {[%clk 0:00:58.9]} 5. Be3 {[%clk 0:00:58]} 5... d4 {[%clk 0:00:57.6]} 6. Nd5 {[%clk 0:00:56.2]} 6... dxe3 {[%clk 0:00:56.5]} 7. fxe3 {[%clk 0:00:55]} 7... Nxd5 {[%clk 0:00:55.3]} 8. exd5 {[%clk 0:00:54.3]} 8... Qxd5 {[%clk 0:00:54]} 9. e4 {[%clk 0:00:53.6]} 9... Qd8 {[%clk 0:00:50.4]} 10. Qd2 {[%clk 0:00:52.7]} 10... Bd6 {[%clk 0:00:50.2]} 11. O-O-O {[%clk 0:00:51.1]} 11... O-O {[%clk 0:00:49.4]} 12. Kb1 {[%clk 0:00:49.5]} 12... f5 {[%clk 0:00:49.1]} 13. b3 {[%clk 0:00:48.4]} 13... fxe4 {[%clk 0:00:47.9]} 14. dxe4 {[%clk 0:00:47.4]} 14... Qf6 {[%clk 0:00:42.8]} 15. Bb5 {[%clk 0:00:45.2]} 15... Nd4 {[%clk 0:00:40.1]} 16. Bc4+ {[%clk 0:00:43.1]} 16... Be6 {[%clk 0:00:38.2]} 17. Bxe6+ {[%clk 0:00:41]} 17... Nxe6 {[%clk 0:00:37.9]} 18. Rde1 {[%clk 0:00:38]} 18... Nc5 {[%clk 0:00:37.6]} 19. Qc3 {[%clk 0:00:35.1]} 19... Qd8 {[%clk 0:00:37.3]} 20. Qc4+ {[%clk 0:00:33.3]} 20... Kh8 {[%clk 0:00:34.7]} 21. Ref1 {[%clk 0:00:30.3]} 21... b6 {[%clk 0:00:33]} 22. h4 {[%clk 0:00:27.9]} 22... Qc8 {[%clk 0:00:32.5]} 23. Ng5 {[%clk 0:00:27.1]} 23... Qb7 {[%clk 0:00:32.1]} 24. Rxf8+ {[%clk 0:00:25.4]} 24... Rxf8 {[%clk 0:00:30.1]} 25. Nf7+ {[%clk 0:00:22.6]} 25... Rxf7 {[%clk 0:00:29.5]} 26. Qxf7 {[%clk 0:00:21.4]} 26... Qb8 {[%clk 0:00:27.5]} 27. Rf1 {[%clk 0:00:19.5]} 27... Nxe4 {[%clk 0:00:24.8]} 28. Rf5 {[%clk 0:00:16.6]} 28... Nd2+ {[%clk 0:00:23.4]} 29. Kb2 {[%clk 0:00:14.9]} 29... Ne4 {[%clk 0:00:23]} 30. Rf3 {[%clk 0:00:12.8]} 30... Nd2 {[%clk 0:00:21.7]} 31. Rd3 {[%clk 0:00:11.2]} 31... Bb4 {[%clk 0:00:19]} 32. Rd7 {[%clk 0:00:06.5]} 32... Ne4 {[%clk 0:00:15.6]} 33. Rxc7 {[%clk 0:00:05.3]} 33... Nf6 {[%clk 0:00:11.3]} 0-1

[Event "Live Chess"]
[Site "Chess.com"]
[Date "2010.12.13"]
[Round "-"]
[White "GeraudMoulas"]
[Black "hipposcottimus"]
[Result "1-0"]
[CurrentPosition "8/8/8/6Q1/7P/P5Qk/1P6/2K5 b - -"]
[Timezone "UTC"]
[ECO "D10"]
[ECOUrl "https://www.chess.com/openings/Slav-Defense-3.Nc3"]
[UTCDate "2010.12.13"]
[UTCTime "18:19:05"]
[WhiteElo "1648"]
[BlackElo "1621"]
[TimeControl "60"]
[Termination "GeraudMoulas won by checkmate"]
[StartTime "18:19:05"]
[EndDate "2010.12.13"]
[EndTime "18:20:58"]
[Link "https://www.chess.com/game/live/76946624"]

1. d4 {[%clk 0:01:00]} 1... d5 {[%clk 0:01:00]} 2. c4 {[%clk 0:00:59.8]} 2... c6 {[%clk 0:00:59.8]} 3. Nc3 {[%clk 0:00:59.4]} 3... Nd7 {[%clk 0:00:58.3]} 4. e3 {[%clk 0:00:57.8]} 4... e6 {[%clk 0:00:57.9]} 5. Bd3 {[%clk 0:00:57.1]} 5... Ngf6 {[%clk 0:00:57.7]} 6. Bd2 {[%clk 0:00:56.3]} 6... Bb4 {[%clk 0:00:57.4]} 7. Qc2 {[%clk 0:00:55.2]} 7... Bxc3 {[%clk 0:00:56.6]} 8. Bxc3 {[%clk 0:00:54.4]} 8... O-O {[%clk 0:00:54.3]} 9. O-O-O {[%clk 0:00:53.6]} 9... Nb6 {[%clk 0:00:54]} 10. c5 {[%clk 0:00:52.6]} 10... Nbd7 {[%clk 0:00:53.6]} 11. Nf3 {[%clk 0:00:51]} 11... b6 {[%clk 0:00:53.3]} 12. Ne5 {[%clk 0:00:50.1]} 12... bxc5 {[%clk 0:00:52.1]} 13. Nxc6 {[%clk 0:00:49.2]} 13... Qc7 {[%clk 0:00:50.3]} 14. Ne7+ {[%clk 0:00:47.8]} 14... Kh8 {[%clk 0:00:48.2]} 15. dxc5 {[%clk 0:00:46.7]} 15... Nxc5 {[%clk 0:00:46.8]} 16. Nxc8 {[%clk 0:00:45.1]} 16... Qxc8 {[%clk 0:00:46]} 17. Bxf6 {[%clk 0:00:44]} 17... gxf6 {[%clk 0:00:44.6]} 18. Kb1 {[%clk 0:00:42.8]} 18... Qc6 {[%clk 0:00:44.2]} 19. a3 {[%clk 0:00:40.1]} 19... Rac8 {[%clk 0:00:43.8]} 20. Rc1 {[%clk 0:00:39.2]} 20... Qb5 {[%clk 0:00:43.2]} 21. Qd1 {[%clk 0:00:37.2]} 21... Nxd3 {[%clk 0:00:39.9]} 22. Rxc8 {[%clk 0:00:35]} 22... Rxc8 {[%clk 0:00:39.6]} 23. Qe2 {[%clk 0:00:32.5]} 23... Rc1+ {[%clk 0:00:39.2]} 24. Rxc1 {[%clk 0:00:31.2]} 24... Nxc1 {[%clk 0:00:38.9]} 25. Qxb5 {[%clk 0:00:30.4]} 25... a6 {[%clk 0:00:38.5]} 26. Qe8+ {[%clk 0:00:29.6]} 26... Kg7 {[%clk 0:00:38.2]} 27. Qe7 {[%clk 0:00:28.8]} 27... Kg6 {[%clk 0:00:37.9]} 28. Kxc1 {[%clk 0:00:27.9]} 28... f5 {[%clk 0:00:37.6]} 29. Qa7 {[%clk 0:00:27.3]} 29... e5 {[%clk 0:00:36.4]} 30. Qxa6+ {[%clk 0:00:27.3]} 30... Kg5 {[%clk 0:00:36]} 31. Qd6 {[%clk 0:00:26.4]} 31... f6 {[%clk 0:00:35.7]} 32. Qxd5 {[%clk 0:00:25.8]} 32... h6 {[%clk 0:00:35.1]} 33. Qf3 {[%clk 0:00:25.2]} 33... f4 {[%clk 0:00:34]} 34. h4+ {[%clk 0:00:24.8]} 34... Kf5 {[%clk 0:00:33.6]} 35. e4+ {[%clk 0:00:23.8]} 35... Ke6 {[%clk 0:00:32.1]} 36. Qg4+ {[%clk 0:00:22.9]} 36... Kd6 {[%clk 0:00:30.3]} 37. Qg7 {[%clk 0:00:22]} 37... Kc5 {[%clk 0:00:29.9]} 38. Qxf6 {[%clk 0:00:21.5]} 38... Kd4 {[%clk 0:00:29.6]} 39. Qf5 {[%clk 0:00:20.6]} 39... Kd3 {[%clk 0:00:28.4]} 40. f3 {[%clk 0:00:20]} 40... Ke2 {[%clk 0:00:27.8]} 41. Qxe5 {[%clk 0:00:19.3]} 41... Kf2 {[%clk 0:00:27.4]} 42. Qxf4 {[%clk 0:00:18.8]} 42... Kxg2 {[%clk 0:00:27]} 43. Qxh6 {[%clk 0:00:18.1]} 43... Kxf3 {[%clk 0:00:25.4]} 44. e5 {[%clk 0:00:17.8]} 44... Kg3 {[%clk 0:00:23.9]} 45. e6 {[%clk 0:00:17.8]} 45... Kh3 {[%clk 0:00:23.6]} 46. e7 {[%clk 0:00:17.8]} 46... Kh2 {[%clk 0:00:23.4]} 47. e8=Q {[%clk 0:00:17.8]} 47... Kh3 {[%clk 0:00:23.1]} 48. Qg5 {[%clk 0:00:17.6]} 48... Kh2 {[%clk 0:00:22.8]} 49. Qe1 {[%clk 0:00:13.4]} 49... Kh3 {[%clk 0:00:21.7]} 50. Qeg3# {[%clk 0:00:10.2]} 1-0

[Event "Live Chess"]
[Site "Chess.com"]
[Date "2010.12.13"]
[Round "-"]
[White "hipposcottimus"]
[Black "GeraudMoulas"]
[Result "0-1"]
[CurrentPosition "8/3b2k1/2p1r2p/p2n4/P2P2K1/R2Br1P1/2P3PP/8 w - -"]
[Timezone "UTC"]
[ECO "B01"]
[ECOUrl "https://www.chess.com/openings/Scandinavian-Defense-Mieses-Kotrc-Variation-3.Nc3-Qd8-4.d4-Nf6-5.Nf3"]
[UTCDate "2010.12.13"]
[UTCTime "18:16:40"]
[WhiteElo "1621"]
[BlackElo "1648"]
[TimeControl "60"]
[Termination "GeraudMoulas won on time"]
[StartTime "18:16:40"]
[EndDate "2010.12.13"]
[EndTime "18:18:54"]
[Link "https://www.chess.com/game/live/76945941"]

1. e4 {[%clk 0:01:00]} 1... d5 {[%clk 0:01:00]} 2. exd5 {[%clk 0:00:58.5]} 2... Qxd5 {[%clk 0:01:00]} 3. Nc3 {[%clk 0:00:58.2]} 3... Qd8 {[%clk 0:00:59.1]} 4. d4 {[%clk 0:00:57]} 4... Nf6 {[%clk 0:00:59.1]} 5. Nf3 {[%clk 0:00:56.8]} 5... e6 {[%clk 0:00:58.2]} 6. Bg5 {[%clk 0:00:56.4]} 6... Bb4 {[%clk 0:00:57.4]} 7. Be2 {[%clk 0:00:54.1]} 7... Bxc3+ {[%clk 0:00:56.5]} 8. bxc3 {[%clk 0:00:53.8]} 8... O-O {[%clk 0:00:55.9]} 9. O-O {[%clk 0:00:53.4]} 9... Nbd7 {[%clk 0:00:54.6]} 10. Bd3 {[%clk 0:00:51.2]} 10... h6 {[%clk 0:00:53.5]} 11. Bh4 {[%clk 0:00:50]} 11... Qe8 {[%clk 0:00:50.1]} 12. Re1 {[%clk 0:00:48.5]} 12... Nb6 {[%clk 0:00:47.2]} 13. Qe2 {[%clk 0:00:47.8]} 13... Nh5 {[%clk 0:00:45.6]} 14. Qe4 {[%clk 0:00:46.1]} 14... g6 {[%clk 0:00:43]} 15. Ne5 {[%clk 0:00:41.5]} 15... Ng7 {[%clk 0:00:39.8]} 16. Nxg6 {[%clk 0:00:40.3]} 16... fxg6 {[%clk 0:00:39]} 17. Qxg6 {[%clk 0:00:39.9]} 17... Qxg6 {[%clk 0:00:38.3]} 18. Bxg6 {[%clk 0:00:39.4]} 18... Nf5 {[%clk 0:00:34.5]} 19. Bg3 {[%clk 0:00:32.6]} 19... Nxg3 {[%clk 0:00:32.8]} 20. fxg3 {[%clk 0:00:32.4]} 20... Nd5 {[%clk 0:00:32.2]} 21. Rxe6 {[%clk 0:00:32]} 21... Bxe6 {[%clk 0:00:30.6]} 22. Re1 {[%clk 0:00:29.4]} 22... Bd7 {[%clk 0:00:27.7]} 23. Be4 {[%clk 0:00:28]} 23... Nxc3 {[%clk 0:00:26.5]} 24. Bxb7 {[%clk 0:00:26.9]} 24... Rae8 {[%clk 0:00:25.3]} 25. Rc1 {[%clk 0:00:15.4]} 25... c6 {[%clk 0:00:24.2]} 26. Ba6 {[%clk 0:00:13.5]} 26... Rf6 {[%clk 0:00:19.1]} 27. Bc4+ {[%clk 0:00:12.8]} 27... Kg7 {[%clk 0:00:17]} 28. a4 {[%clk 0:00:12.2]} 28... Nd5 {[%clk 0:00:15.9]} 29. Ra1 {[%clk 0:00:11.2]} 29... a5 {[%clk 0:00:13.6]} 30. Rd1 {[%clk 0:00:08.2]} 30... Re3 {[%clk 0:00:12.1]} 31. Bd3 {[%clk 0:00:05.2]} 31... Nc3 {[%clk 0:00:09.9]} 32. Ra1 {[%clk 0:00:02]} 32... Rfe6 {[%clk 0:00:08.8]} 33. Ra3 {[%clk 0:00:01.7]} 33... Re1+ {[%clk 0:00:07.9]} 34. Kf2 {[%clk 0:00:01.3]} 34... R1e2+ {[%clk 0:00:06.8]} 35. Kf3 {[%clk 0:00:00.5]} 35... R2e3+ {[%clk 0:00:05.4]} 36. Kg4 {[%clk 0:00:00.1]} 36... Nd5 {[%clk 0:00:04.1]} 0-1

[Event "Live Chess"]
[Site "Chess.com"]
[Date "2010.12.13"]
[Round "-"]
[White "sailing"]
[Black "hipposcottimus"]
[Result "0-1"]
[CurrentPosition "6k1/p3q1pp/8/8/K6P/1pr5/8/8 w - -"]
[Timezone "UTC"]
[ECO "D00"]
[ECOUrl "https://www.chess.com/openings/Queens-Pawn-Opening-Accelerated-London-System-2...c6-3.e3"]
[UTCDate "2010.12.13"]
[UTCTime "18:13:55"]
[WhiteElo "1614"]
[BlackElo "1613"]
[TimeControl "60"]
[Termination "hipposcottimus won on time"]
[StartTime "18:13:55"]
[EndDate "2010.12.13"]
[EndTime "18:16:01"]
[Link "https://www.chess.com/game/live/76945125"]

1. d4 {[%clk 0:01:00]} 1... d5 {[%clk 0:01:00]} 2. Bf4 {[%clk 0:00:59.1]} 2... c6 {[%clk 0:00:59.8]} 3. e3 {[%clk 0:00:58.3]} 3... e6 {[%clk 0:00:56.4]} 4. Nf3 {[%clk 0:00:57.6]} 4... Bd6 {[%clk 0:00:56.1]} 5. Bxd6 {[%clk 0:00:55.2]} 5... Qxd6 {[%clk 0:00:55.9]} 6. h3 {[%clk 0:00:54.6]} 6... Nf6 {[%clk 0:00:54.4]} 7. Nc3 {[%clk 0:00:54]} 7... O-O {[%clk 0:00:53.3]} 8. a3 {[%clk 0:00:53.4]} 8... b6 {[%clk 0:00:52.5]} 9. Bd3 {[%clk 0:00:52.8]} 9... Ba6 {[%clk 0:00:50.7]} 10. Bxa6 {[%clk 0:00:49]} 10... Nxa6 {[%clk 0:00:50.4]} 11. Qe2 {[%clk 0:00:48.4]} 11... c5 {[%clk 0:00:50.1]} 12. Qxa6 {[%clk 0:00:46.7]} 12... cxd4 {[%clk 0:00:49.8]} 13. exd4 {[%clk 0:00:43.5]} 13... Ne4 {[%clk 0:00:49.5]} 14. Qd3 {[%clk 0:00:41.3]} 14... f5 {[%clk 0:00:45.5]} 15. Nxe4 {[%clk 0:00:39.1]} 15... fxe4 {[%clk 0:00:45.1]} 16. Qe2 {[%clk 0:00:38.4]} 16... exf3 {[%clk 0:00:44.4]} 17. gxf3 {[%clk 0:00:37.4]} 17... Qe7 {[%clk 0:00:42.6]} 18. O-O-O {[%clk 0:00:36.8]} 18... Rf7 {[%clk 0:00:42.1]} 19. Rhe1 {[%clk 0:00:35.9]} 19... Raf8 {[%clk 0:00:41.8]} 20. Qxe6 {[%clk 0:00:34.5]} 20... Qc7 {[%clk 0:00:41.4]} 21. Qd6 {[%clk 0:00:32.6]} 21... Qc4 {[%clk 0:00:37.9]} 22. Qe5 {[%clk 0:00:29.9]} 22... Rf5 {[%clk 0:00:36.3]} 23. Rd3 {[%clk 0:00:26.9]} 23... Rxe5 {[%clk 0:00:34.9]} 24. Rc3 {[%clk 0:00:25.9]} 24... Qxd4 {[%clk 0:00:33.4]} 25. Rd3 {[%clk 0:00:23.5]} 25... Rxe1+ {[%clk 0:00:32]} 26. Kd2 {[%clk 0:00:21.9]} 26... Qxf2+ {[%clk 0:00:31.5]} 27. Kc3 {[%clk 0:00:20.1]} 27... Re3 {[%clk 0:00:30.1]} 28. Rxe3 {[%clk 0:00:17.1]} 28... Qxe3+ {[%clk 0:00:29.8]} 29. Kb4 {[%clk 0:00:16.6]} 29... Rxf3 {[%clk 0:00:29.4]} 30. c3 {[%clk 0:00:16.6]} 30... Qe2 {[%clk 0:00:29.1]} 31. Kb3 {[%clk 0:00:15.9]} 31... Qe3 {[%clk 0:00:28.3]} 32. Kb4 {[%clk 0:00:14.8]} 32... d4 {[%clk 0:00:27.9]} 33. cxd4 {[%clk 0:00:13.6]} 33... Qxd4+ {[%clk 0:00:27.6]} 34. Kb5 {[%clk 0:00:13.6]} 34... Qxb2+ {[%clk 0:00:27.2]} 35. Ka6 {[%clk 0:00:13.6]} 35... Qxa3+ {[%clk 0:00:27]} 36. Kb7 {[%clk 0:00:12.7]} 36... Rd3 {[%clk 0:00:26.5]} 37. h4 {[%clk 0:00:11.8]} 37... Qe7+ {[%clk 0:00:25.4]} 38. Ka6 {[%clk 0:00:10.2]} 38... Ra3+ {[%clk 0:00:25]} 39. Kb5 {[%clk 0:00:08.8]} 39... Qe5+ {[%clk 0:00:22.4]} 40. Kc6 {[%clk 0:00:06.7]} 40... Rc3+ {[%clk 0:00:21.4]} 41. Kb7 {[%clk 0:00:05.9]} 41... Qe7+ {[%clk 0:00:19]} 42. Ka6 {[%clk 0:00:04.7]} 42... b5 {[%clk 0:00:16.8]} 43. Ka5 {[%clk 0:00:03.2]} 43... b4 {[%clk 0:00:15.9]} 44. Ka4 {[%clk 0:00:02.1]} 44... b3 {[%clk 0:00:14.8]} 0-1

[Event "Live Chess"]
[Site "Chess.com"]
[Date "2010.12.13"]
[Round "-"]
[White "richietamil"]
[Black "hipposcottimus"]
[Result "0-1"]
[CurrentPosition "r3k1nr/ppp2ppp/2n2q2/4p3/4B1b1/5N2/PPPP1PP1/RNB1K2R w KQkq -"]
[Timezone "UTC"]
[ECO "A00"]
[ECOUrl "https://www.chess.com/openings/Vant-Kruijs-Opening-1...d5"]
[UTCDate "2010.12.13"]
[UTCTime "18:12:43"]
[WhiteElo "1401"]
[BlackElo "1605"]
[TimeControl "60"]
[Termination "hipposcottimus won on time"]
[StartTime "18:12:43"]
[EndDate "2010.12.13"]
[EndTime "18:13:19"]
[Link "https://www.chess.com/game/live/76944623"]

1. e3 {[%clk 0:01:00]} 1... d5 {[%clk 0:01:00]} 2. Qh5 {[%clk 0:00:58.7]} 2... e6 {[%clk 0:00:57.6]} 3. Qe5 {[%clk 0:00:56.8]} 3... Nc6 {[%clk 0:00:54.9]} 4. Qg3 {[%clk 0:00:54.9]} 4... Qf6 {[%clk 0:00:50.8]} 5. Nf3 {[%clk 0:00:53.8]} 5... Bd6 {[%clk 0:00:49.1]} 6. Bd3 {[%clk 0:00:52.7]} 6... Bxg3 {[%clk 0:00:47.8]} 7. hxg3 {[%clk 0:00:52.3]} 7... e5 {[%clk 0:00:46.4]} 8. e4 {[%clk 0:00:51.1]} 8... dxe4 {[%clk 0:00:45]} 9. Bxe4 {[%clk 0:00:50.5]} 9... Bf5 {[%clk 0:00:43.7]} 10. g4 {[%clk 0:00:47.9]} 10... Bxg4 {[%clk 0:00:41.5]} 0-1

[Event "Live Chess"]
[Site "Chess.com"]
[Date "2010.12.13"]
[Round "-"]
[White "hipposcottimus"]
[Black "richietamil"]
[Result "1-0"]
[CurrentPosition "8/5P2/1p5R/kb4K1/1q6/8/P5PP/8 b - -"]
[Timezone "UTC"]
[ECO "B00"]
[ECOUrl "https://www.chess.com/openings/Owens-Defense"]
[UTCDate "2010.12.13"]
[UTCTime "18:09:22"]
[WhiteElo "1601"]
[BlackElo "1405"]
[TimeControl "60"]
[Termination "hipposcottimus won on time"]
[StartTime "18:09:22"]
[EndDate "2010.12.13"]
[EndTime "18:11:42"]
[Link "https://www.chess.com/game/live/76943903"]

1. e4 {[%clk 0:01:00]} 1... b6 {[%clk 0:01:00]} 2. Nf3 {[%clk 0:00:59.7]} 2... c6 {[%clk 0:00:59.6]} 3. d3 {[%clk 0:00:59.4]} 3... d6 {[%clk 0:00:59.2]} 4. c3 {[%clk 0:00:59.1]} 4... Bb7 {[%clk 0:00:58.8]} 5. d4 {[%clk 0:00:58.8]} 5... Nd7 {[%clk 0:00:58.4]} 6. e5 {[%clk 0:00:58.5]} 6... Qc7 {[%clk 0:00:57.5]} 7. e6 {[%clk 0:00:57.4]} 7... fxe6 {[%clk 0:00:56.1]} 8. Qe2 {[%clk 0:00:56.6]} 8... O-O-O {[%clk 0:00:55.6]} 9. Qxe6 {[%clk 0:00:55.5]} 9... Nf6 {[%clk 0:00:54.8]} 10. Bg5 {[%clk 0:00:53.5]} 10... h6 {[%clk 0:00:53.4]} 11. Bh4 {[%clk 0:00:52]} 11... g5 {[%clk 0:00:51.9]} 12. Bg3 {[%clk 0:00:51.8]} 12... Bg7 {[%clk 0:00:50.7]} 13. Bc4 {[%clk 0:00:48]} 13... Rhe8 {[%clk 0:00:49.5]} 14. Bb3 {[%clk 0:00:47.5]} 14... Nd5 {[%clk 0:00:47.4]} 15. c4 {[%clk 0:00:45.4]} 15... Nf4 {[%clk 0:00:44.6]} 16. Bxf4 {[%clk 0:00:44.3]} 16... gxf4 {[%clk 0:00:43.5]} 17. O-O {[%clk 0:00:44]} 17... Rf8 {[%clk 0:00:39.3]} 18. c5 {[%clk 0:00:34.5]} 18... Rf6 {[%clk 0:00:38.4]} 19. cxd6 {[%clk 0:00:34.1]} 19... exd6 {[%clk 0:00:37.1]} 20. Qe7 {[%clk 0:00:30.5]} 20... Bf8 {[%clk 0:00:34.4]} 21. Qh7 {[%clk 0:00:22.7]} 21... Re8 {[%clk 0:00:27.1]} 22. Qc2 {[%clk 0:00:22.4]} 22... Re7 {[%clk 0:00:26.1]} 23. Nc3 {[%clk 0:00:21.9]} 23... Rfe6 {[%clk 0:00:25.3]} 24. d5 {[%clk 0:00:21.5]} 24... cxd5 {[%clk 0:00:23.5]} 25. Nxd5 {[%clk 0:00:19.7]} 25... Qxc2 {[%clk 0:00:22.3]} 26. Nxe7+ {[%clk 0:00:19.1]} 26... Bxe7 {[%clk 0:00:20.7]} 27. Bxc2 {[%clk 0:00:18.7]} 27... Nc5 {[%clk 0:00:19.7]} 28. Bf5 {[%clk 0:00:18.4]} 28... d5 {[%clk 0:00:16.2]} 29. Bxe6+ {[%clk 0:00:18.1]} 29... Nxe6 {[%clk 0:00:15.9]} 30. Rfd1 {[%clk 0:00:15.3]} 30... d4 {[%clk 0:00:15.2]} 31. Nxd4 {[%clk 0:00:14.6]} 31... Nxd4 {[%clk 0:00:14.5]} 32. Rxd4 {[%clk 0:00:14.4]} 32... Kb8 {[%clk 0:00:13.4]} 33. Rd2 {[%clk 0:00:13.8]} 33... Bc5 {[%clk 0:00:12.7]} 34. Rad1 {[%clk 0:00:12.7]} 34... a5 {[%clk 0:00:11.5]} 35. Rd8+ {[%clk 0:00:12.3]} 35... Ka7 {[%clk 0:00:10.9]} 36. R8d4 {[%clk 0:00:11.7]} 36... Bxd4 {[%clk 0:00:09.8]} 37. Rxd4 {[%clk 0:00:11.5]} 37... Ka6 {[%clk 0:00:09.2]} 38. Rxf4 {[%clk 0:00:11.2]} 38... Bc6 {[%clk 0:00:08]} 39. Rh4 {[%clk 0:00:10.9]} 39... Bb5 {[%clk 0:00:07.3]} 40. Rxh6 {[%clk 0:00:10.7]} 40... a4 {[%clk 0:00:06.2]} 41. f4 {[%clk 0:00:10.4]} 41... Ka5 {[%clk 0:00:05.7]} 42. f5 {[%clk 0:00:10]} 42... a3 {[%clk 0:00:05.1]} 43. f6 {[%clk 0:00:09.7]} 43... axb2 {[%clk 0:00:04.3]} 44. f7 {[%clk 0:00:06.6]} 44... b1=Q+ {[%clk 0:00:03]} 45. Kf2 {[%clk 0:00:06.4]} 45... Qb2+ {[%clk 0:00:02.1]} 46. Kg3 {[%clk 0:00:06.1]} 46... Qb3+ {[%clk 0:00:01.4]} 47. Kh4 {[%clk 0:00:04.6]} 47... Qb4+ {[%clk 0:00:00.4]} 48. Kg5 {[%clk 0:00:04.3]} 1-0